bitfinex-derivatives/quotes_BTCF0:USTF0_20240929
["timestamp","ask_amount","ask_price","bid_price","bid_amount"]
[1727572411786,0.076038,65740.0,65739.0,0.25549894]
[1727572411989,0.081038,65740.0,65739.0,0.25549894]
[1727572412987,0.009,65740.0,65739.0,0.33153794]
[1727572418793,0.009,65740.0,65739.0,0.4380557]
[1727572419602,0.009,65740.0,65739.0,0.7988557]
[1727572419896,0.009,65740.0,65739.0,0.7985383]
[1727572420587,0.009,65740.0,65739.0,0.96025079]
[1727572422593,0.009,65740.0,65739.0,0.96024844]
[1727572425099,0.009,65740.0,65739.0,0.9602256]
[1727572425287,0.009,65740.0,65739.0,0.5994256]
[1727572425596,0.009,65740.0,65739.0,0.9602256]
[1727572426391,0.09292638,65740.0,65739.0,0.076039]
[1727572426596,0.09292638,65740.0,65739.0,0.436839]
[1727572427388,0.09292638,65740.0,65739.0,0.076039]
[1727572427595,0.09292638,65740.0,65739.0,0.436839]
[1727572430593,0.09292638,65740.0,65739.0,0.076039]
[1727572430804,0.09292638,65740.0,65739.0,0.436839]
[1727572431185,0.09292638,65740.0,65739.0,0.076039]
[1727572431698,0.09292638,65740.0,65739.0,0.436839]
[1727572433496,0.009,65740.0,65739.0,0.96019872]
[1727572434685,0.009,65740.0,65739.0,0.59939872]
[1727572434898,0.009,65740.0,65739.0,0.18255676]
[1727572435092,0.009,65740.0,65739.0,0.59933534]
[1727572435596,0.009,65740.0,65739.0,0.96013534]
[1727572435993,0.009,65740.0,65739.0,0.59933534]
[1727572436188,0.009,65740.0,65739.0,0.96013534]
[1727572436394,0.129,65740.0,65739.0,0.96013534]
[1727572436889,0.129,65740.0,65739.0,0.59933534]
[1727572437089,0.129,65740.0,65739.0,0.96013534]
[1727572438089,0.129,65740.0,65739.0,0.59933534]
[1727572438292,0.129,65740.0,65739.0,0.96013534]
[1727572441196,0.129,65740.0,65739.0,0.69196708]
[1727572441393,0.03768038,65740.0,65739.0,0.55273885]
[1727572441905,0.03768038,65740.0,65739.0,0.51292533]
[1727572442306,0.03768038,65740.0,65739.0,0.62882949]
[1727572442512,0.03768038,65740.0,65739.0,0.51292533]
[1727572442810,0.03768038,65740.0,65739.0,0.436839]
[1727572443502,0.03768038,65740.0,65738.0,0.07608633]
[1727572443810,0.0795,65739.0,65737.0,0.07608633]
[1727572444011,0.1208,65738.0,65737.0,0.07608633]
[1727572444203,0.1208,65738.0,65737.0,0.26803555]
[1727572444908,0.19684,65738.0,65737.0,0.26803555]
[1727572445912,0.19884,65738.0,65737.0,0.26803555]
[1727572446301,0.20084,65738.0,65737.0,0.26803555]
[1727572447210,0.21084,65738.0,65737.0,0.26803555]
[1727572447612,0.21084,65738.0,65737.0,0.15212733]
[1727572447916,0.20084,65738.0,65737.0,0.15212733]
[1727572448615,0.28477149,65738.0,65737.0,0.076041]
[1727572449812,0.29477149,65738.0,65737.0,0.076041]
[1727572450113,0.28477149,65738.0,65737.0,0.076041]
[1727572450310,0.076041,65737.0,65733.0,0.3608]
[1727572450614,0.1208,65734.0,65733.0,0.436846]
[1727572450812,0.15804607,65734.0,65733.0,0.436846]
[1727572452006,0.15804607,65734.0,65733.0,0.438846]
[1727572452417,0.15804607,65734.0,65733.0,0.440846]
[1727572452614,0.20473201,65734.0,65733.0,0.440846]
[1727572454322,0.20473201,65734.0,65733.0,0.080046]
[1727572454515,0.20473201,65734.0,65733.0,0.440846]
[1727572455410,0.23147266,65734.0,65733.0,0.440846]
[1727572456419,0.36752172,65734.0,65733.0,0.440846]
[1727572456727,0.28358971,65734.0,65733.0,0.69524919]
[1727572457725,0.28358971,65734.0,65733.0,0.69521598]
[1727572458818,0.28358971,65734.0,65733.0,0.33441598]
[1727572459124,0.28358971,65734.0,65733.0,0.69521598]
[1727572459616,0.28358971,65734.0,65733.0,0.33441598]
[1727572459816,0.28358971,65734.0,65733.0,0.69521598]
[1727572463625,0.23147359,65734.0,65733.0,0.080046]
[1727572464328,0.23147359,65734.0,65733.0,0.440846]
[1727572464528,0.23147359,65734.0,65733.0,0.080046]
[1727572464829,0.23147359,65734.0,65733.0,0.440846]
[1727572465226,0.23147359,65734.0,65733.0,0.080046]
[1727572465528,0.23147359,65734.0,65733.0,0.440846]
[1727572466425,0.23147359,65734.0,65733.0,0.080046]
[1727572466629,0.23147359,65734.0,65733.0,0.440846]
[1727572467030,0.23147359,65734.0,65733.0,0.080046]
[1727572467230,0.23147359,65734.0,65733.0,0.440846]
[1727572469826,0.11147359,65734.0,65733.0,0.440846]
[1727572471630,0.11147359,65734.0,65733.0,0.55675532]
[1727572471631,0.02754065,65734.0,65733.0,0.55675532]
[1727572472025,0.02754065,65734.0,65733.0,0.63281888]
[1727572473433,0.02754065,65734.0,65733.0,0.27201888]
[1727572473630,0.02754065,65734.0,65733.0,0.63281888]
[1727572474534,0.02754065,65734.0,65733.0,0.27201888]
[1727572474730,0.02754065,65734.0,65733.0,0.63281888]
[1727572475424,0.02754065,65734.0,65733.0,0.27201888]
[1727572475826,0.02754065,65734.0,65733.0,0.63281888]
[1727572476333,0.02754065,65734.0,65733.0,0.27201888]
[1727572476525,0.02754065,65734.0,65733.0,0.55675532]
[1727572476933,0.02754065,65734.0,65733.0,0.19595532]
[1727572477632,0.02754065,65734.0,65733.0,0.55675532]
[1727572477934,0.02754065,65734.0,65733.0,0.19595532]
[1727572478329,0.02754065,65734.0,65733.0,0.55675532]
[1727572478530,0.02754065,65734.0,65733.0,0.440846]
[1727572478531,0.11147358,65734.0,65733.0,0.440846]
[1727572478935,0.23147358,65734.0,65733.0,0.440846]
[1727572480734,0.23147358,65734.0,65733.0,0.080046]
[1727572481338,0.23147358,65734.0,65733.0,0.440846]
[1727572482539,0.28602607,65734.0,65733.0,0.440846]
[1727572482735,0.28602607,65734.0,65733.0,0.080046]
[1727572482931,0.28602607,65734.0,65733.0,0.440846]
[1727572484127,0.28602607,65734.0,65733.0,0.080046]
[1727572484333,0.28602607,65734.0,65733.0,0.440846]
[1727572485742,0.28602607,65734.0,65733.0,0.080046]
[1727572486342,0.28602607,65734.0,65733.0,0.440846]
[1727572486541,0.14754065,65734.0,65733.0,0.19595536]
[1727572486948,0.14754065,65734.0,65733.0,0.55675536]
[1727572489138,0.14754065,65734.0,65733.0,0.19595536]
[1727572489546,0.14754065,65734.0,65733.0,0.55675536]
[1727572489949,0.14754065,65734.0,65733.0,0.19595536]
[1727572490146,0.14754065,65734.0,65733.0,0.55675536]
[1727572490943,0.14754065,65734.0,65733.0,0.19595536]
[1727572491148,0.14754065,65734.0,65733.0,0.55675536]
[1727572491342,0.14754065,65734.0,65733.0,0.19595536]
[1727572491542,0.14754065,65734.0,65733.0,0.55675536]
[1727572493253,0.14754065,65734.0,65733.0,0.19595536]
[1727572493450,0.14754065,65734.0,65733.0,0.55675536]
[1727572493648,0.23147356,65734.0,65733.0,0.440846]
[1727572500254,0.11147356,65734.0,65733.0,0.440846]
[1727572500663,0.11147356,65734.0,65733.0,0.560846]
[1727572500664,0.13928538,65734.0,65733.0,0.560846]
[1727572500850,0.08393291,65734.0,65733.0,1.733292]
[1727572501046,0.05865247,65748.0,65737.0,0.076041]
[1727572501047,0.08208516,65745.0,65737.0,0.076041]
[1727572501254,0.05455247,65747.0,65741.0,0.4808]
[1727572501454,0.19616345,65748.0,65747.0,0.07603]
[1727572501663,0.0008,65752.0,65751.0,0.076025]
[1727572501967,0.0008,65752.0,65751.0,0.27198803]
[1727572502260,0.0008,65752.0,65751.0,0.196025]
[1727572503863,0.0288,65752.0,65751.0,0.198025]
[1727572504364,0.0148,65752.0,65751.0,0.197025]
[1727572504556,0.0288,65752.0,65751.0,0.25870036]
[1727572505758,0.0288,65752.0,65751.0,0.198025]
[1727572506657,0.0288,65752.0,65751.0,0.078025]
[1727572507763,0.0288,65752.0,65751.0,0.12349633]
[1727572508562,0.0288,65752.0,65751.0,0.48429633]
[1727572508763,0.0288,65752.0,65751.0,0.438825]
[1727572516663,0.11270807,65752.0,65751.0,0.438825]
[1727572519264,0.11270807,65752.0,65751.0,0.558825]
[1727572520359,0.11270807,65752.0,65751.0,0.63485]
[1727572520560,0.11270807,65752.0,65751.0,0.70815]
[1727572520762,0.11270807,65752.0,65751.0,0.71815]
[1727572521560,0.11270807,65752.0,65751.0,1.77443]
[1727572523873,0.0288,65752.0,65751.0,1.77443]
[1727572524066,0.0008,65757.0,65756.0,0.076019]
[1727572524272,0.0008,65757.0,65756.0,0.556819]
[1727572525066,0.0008,65764.0,65763.0,0.076011]
[1727572525361,0.0008,65764.0,65763.0,0.556811]
[1727572526568,0.0158,65764.0,65763.0,0.558811]
[1727572531671,0.2166053,65764.0,65763.0,0.18182146]
[1727572531862,0.2076053,65764.0,65763.0,0.18082146]
[1727572532069,0.14721727,65764.0,65763.0,0.18082146]
[1727572532268,0.15321727,65764.0,65763.0,0.25783246]
[1727572534079,0.15321727,65764.0,65763.0,0.198011]
[1727572537673,0.15321727,65764.0,65763.0,0.08161095]
[1727572538679,0.0148,65764.0,65763.0,0.08161095]
[1727572546275,0.0088,65764.0,65763.0,0.08061095]
[1727572546481,0.3756,65764.0,65763.0,0.08161095]
[1727572547192,0.45949752,65764.0,65763.0,0.08161095]
[1727572547477,0.45349752,65764.0,65763.0,0.08161095]
[1727572547681,0.57849752,65764.0,65763.0,0.08161095]
[1727572548081,0.57849752,65764.0,65759.0,0.076015]
[1727572548389,0.57849752,65764.0,65757.0,0.0035]
[1727572548390,0.076017,65758.0,65757.0,0.0035]
[1727572548574,0.076019,65757.0,65754.0,0.437621]
[1727572548772,0.0004,65755.0,65754.0,0.436821]
[1727572550385,0.0064,65755.0,65754.0,0.437821]
[1727572550569,0.08242,65755.0,65754.0,0.437821]
[1727572550775,0.076023,65753.0,65751.0,0.0035]
[1727572551081,0.196424,65752.0,65749.0,0.076027]
[1727572551281,0.3612,65750.0,65749.0,0.076027]
[1727572551486,0.0004,65750.0,65749.0,0.076027]
[1727572551785,0.3612,65750.0,65749.0,0.076027]
[1727572552085,0.49964199,65750.0,65749.0,0.076027]
[1727572552278,0.49964199,65750.0,65749.0,0.077027]
[1727572552475,0.69615086,65750.0,65749.0,0.077027]
[1727572553483,0.64162139,65750.0,65749.0,0.077027]
[1727572553785,0.44511252,65750.0,65749.0,0.078027]
[1727572554280,0.44511252,65750.0,65749.0,0.077027]
[1727572554481,0.33915561,65750.0,65749.0,0.28506584]
[1727572554681,0.28589347,65750.0,65749.0,0.28506584]
[1727572554882,0.36191947,65750.0,65749.0,0.11788321]
[1727572555175,0.36191947,65750.0,65737.0,0.10651776]
[1727572555176,0.076034,65743.0,65742.0,0.09107869]
[1727572555379,0.196434,65743.0,65741.0,0.076037]
[1727572555578,0.1157,65742.0,65741.0,0.076037]
[1727572556988,0.1187,65742.0,65741.0,0.076037]
[1727572558184,0.1217,65742.0,65741.0,0.076037]
[1727572558583,0.1217,65742.0,65736.0,0.076042]
[1727572558778,0.0004,65737.0,65736.0,0.076042]
[1727572559380,0.1204,65737.0,65736.0,0.076042]
[1727572560180,0.0004,65737.0,65736.0,0.198042]
[1727572560881,0.0004,65737.0,65736.0,0.200042]
[1727572563391,0.0004,65737.0,65736.0,0.080042]
[1727572563797,0.076441,65737.0,65736.0,0.004]
[1727572567395,0.0004,65737.0,65736.0,0.004]
[1727572569188,0.076441,65737.0,65736.0,0.004]
[1727572569387,0.16037247,65737.0,65736.0,0.004]
[1727572569904,0.32661741,65737.0,65736.0,0.004]
[1727572570487,0.16037247,65737.0,65736.0,0.004]
[1727572571188,0.16037276,65737.0,65736.0,0.004]
[1727572572683,0.32627794,65737.0,65736.0,0.004]
[1727572573293,0.16037276,65737.0,65736.0,0.004]
[1727572575303,0.32625278,65737.0,65736.0,0.004]
[1727572575495,0.16037276,65737.0,65736.0,0.004]
[1727572575691,0.076441,65737.0,65736.0,0.004]
[1727572575887,0.076048,65731.0,65729.0,0.07955]
[1727572576088,0.1208,65730.0,65729.0,0.07605]
[1727572576303,0.35553001,65730.0,65729.0,0.07605]
[1727572576505,0.27158816,65730.0,65729.0,0.07605]
[1727572577594,0.27158816,65730.0,65729.0,0.08505]
[1727572578209,0.27158816,65730.0,65729.0,0.07605]
[1727572578394,0.27358816,65730.0,65729.0,0.15470495]
[1727572578595,0.34963716,65730.0,65729.0,0.018]
[1727572579707,0.34963716,65730.0,65729.0,0.07867271]
[1727572580402,0.34963716,65730.0,65729.0,0.018]
[1727572580598,0.37670131,65730.0,65729.0,0.07867271]
[1727572582505,0.37670131,65730.0,65729.0,0.018]
[1727572584106,0.83310131,65730.0,65729.0,0.018]
[1727572584502,0.83310131,65730.0,65729.0,0.13392523]
[1727572584715,0.07605,65729.0,65722.0,0.00228211]
[1727572585006,0.076061,65721.0,65719.0,0.076062]
[1727572585207,0.1208,65720.0,65719.0,0.076062]
[1727572585609,0.1208,65720.0,65719.0,0.15197857]
[1727572585800,0.196861,65720.0,65719.0,0.07591657]
[1727572586404,0.196861,65720.0,65717.0,0.07591657]
[1727572586609,0.1068,65718.0,65717.0,0.07591657]
[1727572586799,0.1068,65718.0,65715.0,0.113467]
[1727572586995,0.0008,65716.0,65715.0,0.113467]
[1727572587510,0.07544644,65717.0,65715.0,0.076067]
[1727572587894,0.07344644,65717.0,65716.0,0.07587502]
[1727572588404,0.076065,65716.0,65715.0,0.07587502]
[1727572588607,0.076865,65716.0,65715.0,0.004]
[1727572590395,0.076865,65716.0,65712.0,0.15194502]
[1727572590606,0.1208,65713.0,65712.0,0.15194502]
[1727572591502,0.1208,65713.0,65712.0,0.07607]
[1727572591696,0.1218,65713.0,65712.0,0.07607]
[1727572592007,0.1228,65713.0,65712.0,0.07607]
[1727572593811,0.14958711,65713.0,65712.0,0.07607]
[1727572597408,0.02958711,65713.0,65712.0,0.19607]
[1727572597805,0.0028,65713.0,65712.0,0.27214]
[1727572598012,0.0028,65713.0,65712.0,0.31044]
[1727572598212,0.0028,65713.0,65712.0,0.23437]
[1727572598510,0.0008,65716.0,65712.0,0.1583]
[1727572598719,0.02828234,65716.0,65715.0,0.196067]
[1727572598921,0.0008,65716.0,65715.0,0.196067]
[1727572599420,0.3259371,65723.0,65722.0,0.076058]
[1727572599637,0.3259371,65723.0,65722.0,0.12153628]
[1727572599916,0.35307957,65723.0,65722.0,0.13669571]
[1727572600118,0.35307957,65723.0,65722.0,0.076058]
[1727572600510,0.35707957,65723.0,65722.0,0.076058]
[1727572601809,0.36207957,65723.0,65722.0,0.076058]
[1727572605327,0.076058,65722.0,65721.0,0.07579713]
[1727572605518,0.07606,65721.0,65720.0,0.07579713]
[1727572605722,0.076062,65719.0,65718.0,0.07579713]
[1727572605921,0.076063,65718.0,65717.0,0.07579713]
[1727572606113,0.076064,65717.0,65716.0,0.07579713]
[1727572606315,0.196864,65717.0,65716.0,0.11537321]
[1727572606620,0.28082235,65717.0,65713.0,0.076069]
[1727572606812,0.1208,65714.0,65713.0,0.076069]
[1727572607008,0.15805799,65714.0,65713.0,0.076069]
[1727572608823,0.20475784,65714.0,65713.0,0.076069]
[1727572609028,0.20575784,65714.0,65713.0,0.076069]
[1727572609527,0.20675784,65714.0,65713.0,0.076069]
[1727572610825,0.16005799,65714.0,65713.0,0.076069]
[1727572611335,0.34261775,65714.0,65713.0,0.076069]
[1727572611632,0.20675792,65714.0,65713.0,0.076069]
[1727572611936,0.20675693,65714.0,65713.0,0.076069]
[1727572612431,0.34261676,65714.0,65713.0,0.076069]
[1727572612640,0.20675693,65714.0,65713.0,0.076069]
[1727572612923,0.22261676,65714.0,65713.0,0.076069]
[1727572613724,0.1658586,65714.0,65713.0,0.32923156]
[1727572616120,0.02999877,65714.0,65713.0,0.32923156]
[1727572617530,0.09670995,65716.0,65715.0,0.076067]
[1727572617733,0.09670995,65716.0,65715.0,0.32922956]
[1727572619421,0.12444226,65716.0,65715.0,0.32840116]
[1727572621716,0.12444226,65716.0,65715.0,0.076067]
[1727572621717,0.06498941,65716.0,65715.0,0.076067]
[1727572622737,0.06498941,65716.0,65715.0,0.196067]
[1727572623735,0.0008,65717.0,65716.0,0.15213]
[1727572623920,0.10666652,65717.0,65716.0,0.21013]
[1727572624125,0.10666652,65719.0,65717.0,0.076064]
[1727572624319,0.0008,65719.0,65718.0,0.1589]
[1727572625029,0.10586652,65720.0,65719.0,0.152124]
[1727572625333,0.10586652,65723.0,65720.0,0.076061]
[1727572625533,0.10586652,65723.0,65722.0,0.4808]
[1727572626129,0.10586652,65723.0,65722.0,0.556858]
[1727572626330,0.10586652,65724.0,65723.0,0.076057]
[1727572626531,0.38877106,65729.0,65724.0,0.076056]
[1727572626532,0.10586652,65725.0,65724.0,0.076056]
[1727572626831,0.10584344,65729.0,65728.0,0.076052]
[1727572627035,0.15169836,65732.0,65729.0,0.07605]
[1727572627036,0.10584344,65730.0,65729.0,0.07605]
[1727572627424,0.10584344,65731.0,65730.0,0.076049]
[1727572627626,0.10584344,65731.0,65730.0,0.436849]
[1727572628533,0.13306645,65732.0,65731.0,0.076048]
[1727572628728,0.10584344,65732.0,65731.0,0.3263829]
[1727572629127,0.10584344,65732.0,65731.0,0.19025387]
[1727572629746,0.11584344,65732.0,65731.0,0.19025387]
[1727572630332,0.11584344,65732.0,65731.0,0.28131397]
[1727572630527,0.11584344,65732.0,65731.0,0.19025387]
[1727572630838,0.11584344,65732.0,65731.0,0.2813089]
[1727572631035,0.12784344,65732.0,65731.0,0.2813089]
[1727572631330,0.12784344,65732.0,65731.0,0.19025387]
[1727572631531,0.12784344,65732.0,65731.0,0.40237805]
[1727572631735,0.12784344,65732.0,65731.0,0.85877805]
[1727572632337,0.12784344,65732.0,65731.0,0.858251]
[1727572632529,0.12784344,65732.0,65731.0,1.458251]
[1727572635337,0.12784344,65732.0,65731.0,1.32251997]
[1727572636144,0.12784344,65732.0,65731.0,1.45800285]
[1727572636323,0.022,65732.0,65731.0,1.32251997]
[1727572636723,0.022,65732.0,65731.0,1.208648]
[1727572636724,0.05924305,65732.0,65731.0,1.208648]
[1727572636943,0.1801133,65732.0,65731.0,1.208648]
[1727572637436,0.05924306,65732.0,65731.0,1.208648]
[1727572638329,0.05924306,65732.0,65731.0,0.608648]
[1727572639122,0.05924306,65732.0,65731.0,0.076048]
[1727572640633,0.06868182,65732.0,65731.0,0.076048]
[1727572640831,0.2419039,65732.0,65731.0,0.076048]
[1727572641030,0.24153656,65732.0,65731.0,0.076048]
[1727572641237,0.24153656,65732.0,65724.0,0.5408]
[1727572641238,0.54277838,65732.0,65724.0,0.436856]
[1727572641433,0.13641741,65725.0,65724.0,0.436856]
[1727572641739,0.08474102,65725.0,65724.0,0.436856]
[1727572642643,0.08874102,65725.0,65724.0,0.436856]
[1727572643824,0.08874102,65725.0,65724.0,0.55102438]
[1727572643825,0.0048,65725.0,65724.0,0.55102438]
[1727572644440,0.0039415,65726.0,65724.0,0.55102438]
[1727572644631,0.0039415,65726.0,65725.0,0.18993367]
[1727572644831,0.4407955,65726.0,65725.0,0.07576529]
[1727572645028,0.076055,65725.0,65724.0,0.06061264]
[1727572645232,0.083855,65725.0,65724.0,0.06061264]
[1727572645438,0.076056,65724.0,65723.0,0.06061264]
[1727572645636,0.076058,65722.0,65721.0,0.06061264]
[1727572645839,0.256858,65722.0,65721.0,0.06061264]
[1727572646031,0.256858,65722.0,65720.0,0.06061264]
[1727572646228,0.0008,65721.0,65720.0,0.06061264]
[1727572646428,0.0008,65721.0,65719.0,0.06061264]
[1727572646628,0.3616,65720.0,65719.0,0.06061264]
[1727572646836,0.3984,65720.0,65719.0,0.06061264]
[1727572647042,0.5784,65720.0,65719.0,0.06061264]
[1727572648343,0.5804,65720.0,65719.0,0.06061264]
[1727572648639,0.60718444,65720.0,65718.0,0.08661264]
[1727572648950,0.0008,65719.0,65718.0,0.08661264]
[1727572649134,0.0008,65719.0,65715.0,0.04547996]
[1727572649135,0.03,65719.0,65715.0,0.04547996]
[1727572649335,0.18,65716.0,65714.0,0.04547996]
[1727572649532,0.18,65716.0,65711.0,0.06061264]
[1727572649533,0.076068,65714.0,65713.0,0.04547996]
[1727572649736,0.076868,65714.0,65713.0,0.04547996]
[1727572649937,0.116368,65714.0,65713.0,0.04547996]
[1727572650135,0.115368,65714.0,65713.0,0.04547996]
[1727572650439,0.115368,65714.0,65712.0,0.04547996]
[1727572650643,0.1808,65713.0,65712.0,0.04547996]
[1727572651035,0.1798,65713.0,65712.0,0.04547996]
[1727572651347,0.1798,65713.0,65709.0,0.06061264]
[1727572651348,0.07607,65712.0,65711.0,0.04547996]
[1727572651530,0.07687,65712.0,65710.0,0.04547996]
[1727572651731,0.07687,65712.0,65709.0,0.04547996]
[1727572651732,0.076072,65710.0,65709.0,0.04547996]
[1727572652144,0.076872,65710.0,65709.0,0.04547996]
[1727572652442,0.075872,65710.0,65709.0,0.04547996]
[1727572653547,0.10321456,65710.0,65708.0,0.04547996]
[1727572653743,0.0008,65709.0,65708.0,0.04547996]
[1727572654140,0.0008,65712.0,65710.0,0.076072]
[1727572654343,0.0008,65712.0,65711.0,0.18]
[1727572655439,0.0008,65712.0,65711.0,0.256071]
[1727572655643,0.0008,65712.0,65711.0,0.31664008]
[1727572655644,0.0018,65712.0,65711.0,0.31664008]
[1727572657048,0.0028,65712.0,65711.0,0.31664008]
[1727572657249,0.0028,65712.0,65711.0,0.256071]
[1727572658546,0.0028,65712.0,65711.0,0.31664008]
[1727572658743,0.0028,65712.0,65711.0,0.256071]
[1727572662145,0.0028,65712.0,65711.0,0.296071]
[1727572663145,0.0028,65712.0,65711.0,0.256071]
[1727572666746,0.0043,65716.0,65715.0,0.076067]
[1727572666954,0.0008,65716.0,65715.0,0.076067]
[1727572667451,0.0008,65716.0,65715.0,0.26613172]
[1727572668052,0.0008,65716.0,65715.0,0.62693172]
[1727572668353,0.0008,65716.0,65715.0,0.55118706]
[1727572672354,0.0008,65716.0,65715.0,0.68765433]
[1727572674155,0.0008,65716.0,65715.0,0.80765433]
[1727572679861,0.0008,65716.0,65715.0,0.80795374]
[1727572681864,0.0008,65716.0,65715.0,0.596867]
[1727572681865,0.10627992,65716.0,65715.0,0.596867]
[1727572682467,0.0008,65716.0,65715.0,0.596867]
[1727572682868,0.10627992,65716.0,65715.0,0.596867]
[1727572684880,0.10627992,65716.0,65715.0,0.556867]
[1727572686370,0.10670118,65716.0,65715.0,0.556867]
[1727572688171,0.10670055,65716.0,65715.0,0.556867]
[1727572688375,0.0008,65716.0,65715.0,0.556867]
[1727572688971,0.0108,65719.0,65718.0,0.076063]
[1727572689172,0.0108,65719.0,65718.0,0.32623371]
[1727572689478,0.00381562,65722.0,65720.0,0.076061]
[1727572689779,0.438376,65725.0,65721.0,0.25017071]
[1727572689982,0.438376,65725.0,65722.0,0.25017071]
[1727572690182,0.438376,65725.0,65723.0,0.11413097]
[1727572690378,0.077576,65725.0,65723.0,0.11413097]
[1727572690683,0.076056,65725.0,65723.0,0.11413097]
[1727572690975,0.14985202,65724.0,65723.0,0.19018797]
[1727572691480,0.15585202,65724.0,65723.0,0.32590617]
[1727572691676,0.15785202,65724.0,65723.0,0.32590617]
[1727572692880,0.33390802,65724.0,65723.0,0.11413097]
[1727572693083,0.33390802,65724.0,65723.0,0.19016026]
[1727572693282,0.33390802,65724.0,65723.0,0.11409726]
[1727572695884,0.69470802,65724.0,65723.0,0.11409726]
[1727572696080,0.59470802,65724.0,65723.0,0.11409726]
[1727572696870,0.59470802,65724.0,65722.0,0.16732885]
[1727572696871,0.67866221,65724.0,65722.0,0.076058]
[1727572697087,0.16041119,65723.0,65722.0,0.076058]
[1727572698180,0.16541119,65723.0,65722.0,0.076058]
[1727572699879,0.09335419,65723.0,65722.0,0.076058]
[1727572703877,0.0094,65723.0,65722.0,0.18997236]
[1727572706087,0.0094,65723.0,65722.0,0.28124971]
[1727572707393,0.0094,65723.0,65722.0,0.28125254]
[1727572707978,0.0094,65723.0,65722.0,0.18997519]
[1727572711681,0.0094,65723.0,65722.0,0.28125977]
[1727572711994,0.09335094,65723.0,65722.0,0.076058]
[1727572714207,0.16940794,65723.0,65722.0,0.076058]
[1727572717193,0.16940845,65723.0,65722.0,0.076058]
[1727572718882,0.13215352,65723.0,65722.0,0.18998895]
[1727572719088,0.085457,65723.0,65722.0,0.18998895]
[1727572720292,0.085457,65723.0,65722.0,0.32578149]
[1727572720890,0.085457,65723.0,65722.0,0.45571075]
[1727572720891,0.0094,65723.0,65722.0,0.45571075]
[1727572721191,0.0035,65732.0,65728.0,0.076052]
[1727572721380,0.6018,65745.0,65733.0,0.076046]
[1727572721381,0.0035,65734.0,65733.0,0.076046]
[1727572721586,0.079534,65743.0,65735.0,0.076043]
[1727572721893,0.38883665,65736.0,65735.0,0.28137594]
[1727572722191,0.38883665,65736.0,65735.0,0.19014178]
[1727572722894,0.3608,65736.0,65735.0,0.19014178]
[1727572724300,0.3748,65736.0,65735.0,0.19014178]
[1727572724488,0.028,65736.0,65735.0,0.19014178]
[1727572726292,0.028,65736.0,65735.0,0.2660673]
[1727572726694,0.028,65736.0,65735.0,0.26593027]
[1727572727100,0.028,65736.0,65734.0,0.15540681]
[1727572727101,0.19586902,65736.0,65734.0,0.15540681]
[1727572727298,0.16786902,65735.0,65734.0,0.0906801]
[1727572728204,0.13848802,65735.0,65734.0,0.0906801]
[1727572728599,0.13848802,65735.0,65734.0,0.4514801]
[1727572728801,0.15248802,65735.0,65734.0,0.4514801]
[1727572729800,0.16548802,65735.0,65734.0,0.4514801]
[1727572730398,0.30737517,65735.0,65734.0,0.4514801]
[1727572730603,0.30737517,65735.0,65734.0,0.4908801]
[1727572730903,0.11093451,65735.0,65734.0,0.4908801]
[1727572731288,0.11093451,65735.0,65734.0,0.6069251]
[1727572731493,0.11093451,65735.0,65734.0,1.0633251]
[1727572732009,0.0035,65746.0,65734.0,1.0633251]
[1727572732010,0.0035,65746.0,65739.0,0.076039]
[1727572732209,0.0035,65747.0,65746.0,0.076031]
[1727572732508,0.02678406,65751.0,65746.0,0.1208]
[1727572732697,0.0828,65756.0,65750.0,0.0008]
[1727572732898,0.0828,65756.0,65755.0,0.0008]
[1727572733299,0.06746489,65756.0,65755.0,0.07665139]
[1727572733501,0.02716489,65756.0,65755.0,0.43745139]
[1727572733691,0.0035,65761.0,65757.0,0.076017]
[1727572733896,0.076012,65763.0,65760.0,0.1208]
[1727572734103,0.06696079,65762.0,65761.0,0.0008]
[1727572734708,0.14297279,65762.0,65761.0,0.0008]
[1727572736108,0.14897279,65762.0,65761.0,0.0018]
[1727572736611,0.14897279,65762.0,65761.0,0.0028]
[1727572737899,0.07296079,65762.0,65761.0,0.0028]
[1727572738193,0.03326079,65762.0,65761.0,0.078813]
[1727572738393,0.006,65762.0,65761.0,0.258813]
[1727572740408,0.017,65762.0,65761.0,0.258813]
[1727572741002,0.025,65762.0,65761.0,0.258813]
[1727572742107,0.06223022,65762.0,65761.0,0.258813]
[1727572742305,0.205,65762.0,65761.0,0.0028]
[1727572742613,0.31824284,65762.0,65761.0,0.0028]
[1727572743311,0.43900829,65762.0,65761.0,0.0028]
[1727572743913,0.43900951,65762.0,65761.0,0.0028]
[1727572744305,0.31824406,65762.0,65761.0,0.0028]
[1727572745306,0.13824406,65762.0,65761.0,0.0028]
[1727572745608,0.06223206,65762.0,65761.0,0.078813]
[1727572746406,0.13052327,65762.0,65761.0,0.078813]
[1727572746808,0.025,65762.0,65761.0,0.078813]
[1727572749017,0.16342202,65762.0,65757.0,0.0403]
[1727572749215,0.20081243,65761.0,65757.0,0.0403]
[1727572749420,0.13842202,65760.0,65757.0,0.0403]
[1727572749722,0.13842202,65759.0,65758.0,0.076017]
[1727572750409,0.13842202,65759.0,65758.0,0.256017]
[1727572751011,0.15242202,65759.0,65758.0,0.257017]
[1727572752107,0.16542202,65759.0,65758.0,0.258017]
[1727572752722,0.16542202,65759.0,65758.0,0.618817]
[1727572753112,0.16542202,65759.0,65758.0,0.258017]
[1727572753419,0.16542202,65759.0,65758.0,0.618817]
[1727572753812,0.16542202,65759.0,65758.0,0.258017]
[1727572754012,0.16542202,65759.0,65758.0,0.618817]
[1727572754212,0.16542202,65759.0,65758.0,0.48931065]
[1727572754413,0.16542202,65759.0,65758.0,0.56532765]
[1727572755015,0.16542202,65759.0,65758.0,0.35390737]
[1727572755216,0.16542202,65759.0,65758.0,0.53390737]
[1727572755417,0.16542202,65759.0,65758.0,0.53490737]
[1727572755616,0.16542202,65759.0,65758.0,0.618817]
[1727572756025,0.12819236,65759.0,65758.0,0.618817]
[1727572756222,0.12319236,65759.0,65758.0,0.618817]
[1727572757019,0.022,65759.0,65758.0,0.618817]
[1727572757419,0.018,65759.0,65758.0,0.618817]
[1727572758727,0.018,65759.0,65758.0,0.258017]
[1727572759116,0.018,65759.0,65758.0,0.618817]